{"text_format":"1","workbook":"xlsx","n_sheets":1,"sheets":["на сайт"],"not_rendered":{"charts":0,"images":0,"macros":0,"external_links":0,"defined_names":1,"comments":0,"pivot_tables":0},"unopened":[],"bounds":{"document_bytes":16777216,"sheet_cells":100000,"rows_first":2000,"rows_last":500,"rows_between":2000,"halvings":0,"cell_chars":16384,"cell_head_chars":4096},"cells_cut":0,"cells_raw":0,"read":"whole","date_system":"1900"}

{"sheet":"на сайт","index":0,"n_rows":326,"n_cols":12,"rows_kept":326,"cut":false,"hidden":false,"merged":[]}
["факультет","Код","Наименование","Специализация","Уровень образования","Курс","Форма обучения","Бюджетных ассигнований федерального бюджета","Бюджетные целевые места","Бюджетов субъектов РФ","Местных бюджетов","По договорам \nоб образовании за счет средств физических \nи (или) юридических лиц"]
["ИЗО","08.03.01","Строительство",null,"бакалавриат",1,"заочная",0,0,0,0]
["ИЗО","20.03.01","Техносферная безопасность",null,"бакалавриат",1,"заочная",0,0,0,0,0]
["ИЗО","23.03.01","Технология транспортных процессов",null,"бакалавриат",1,"заочная",0,1,0,0,0]
["ИЗО","09.03.02","Информационные системы и технологии   ",null,"бакалавриат",1,"заочная",0,0,0,0,0]
["ИЗО","13.03.02","Электроэнергетика и электротехника",null,"бакалавриат",1,"заочная",0,0,0,0,0]
["ИЗО","23.03.03","Эксплуатация транспортно-технологических машин и комплексов",null,"бакалавриат",1,"заочная",0,0,0,0,0]
["ИЗО","23.05.03","Подвижной состав железных дорог","Вагоны","специалитет",1,"заочная",0,0,0,0,0]
["ИЗО","23.05.03","Подвижной состав железных дорог","Электрический транспорт железных дорог","специалитет",1,"заочная",0,0,0,0,0]
["ИЗО","27.03.04","Управление в технических системах",null,"бакалавриат",1,"заочная",0,0,0,0,0]
["ИЗО","23.05.04","Эксплуатация железных дорог","Грузовая и коммерческая работа","специалитет",1,"заочная",1,0,0,0,0]
["ИЗО","23.05.04","Эксплуатация железных дорог","Магистральный транспорт","специалитет",1,"заочная",0,0,0,0,0]
["ИЗО","23.05.04","Эксплуатация железных дорог","Пассажирский комплекс ж.д. транспорта","специалитет",1,"заочная",0,0,0,0,0]
["ИЗО","23.05.04","Эксплуатация железных дорог","Транспортный бизнес и логистика","специалитет",1,"заочная",0,0,0,0,0]
["ИЗО","23.05.05","Системы обеспечения движения поездов","Автоматика и телемеханика на ж.д. транспорте","специалитет",1,"заочная",0,0,0,0,0]
["ИЗО","23.05.05","Системы обеспечения движения поездов","Телекоммуникационные системы и сети ж.д. транспорта.","специалитет",1,"заочная",0,0,0,0,0]
["ИЗО","23.05.05","Системы обеспечения движения поездов","Электроснабжение железных дорог","специалитет",1,"заочная",0,0,0,0,0]
["ИЗО","23.05.06","Строительство железных дорог, мостов и транспортных тоннелей   ","Строительство магистральных железных дорог","специалитет",1,"заочная",0,0,0,0,0]
["ИЗО","23.05.06","Строительство железных дорог, мостов и транспортных тоннелей   ","Управление техническим состоянием железнодорожного пути","специалитет",1,"заочная",0,0,0,0,0]
["ИЗО","38.03.01","Экономика   ",null,"бакалавриат",1,"заочная",0,0,0,0,1]
["ИЗО","38.03.02","Менеджмент",null,"бакалавриат",1,"заочная",0,0,0,0,0]
["ИЗО","38.03.03","Управление персоналом  ",null,"бакалавриат",1,"заочная",0,0,0,0,0]
["ДиА","38.04.01","Экономика",null,"магистратура",1,"заочная",0,0,0,0,0]
["СФ","08.03.01","Строительство",null,"бакалавриат",1,"очная",0,0,0,0,0]
["ЭТФ","10.03.01","Информационная безопасность",null,"бакалавриат",1,"очная",1,0,0,0,0]
["ФУПП","20.03.01","Техносферная безопасность",null,"бакалавриат",1,"очная",0,0,0,0,0]
["ФУПП","23.03.01","Технология транспортных процессов",null,"бакалавриат",1,"очная",0,0,0,0,0]
["ДиА","08.04.01","Строительство",null,"магистратура",1,"очная",0,0,0,0,0]
["ДиА","10.04.01","Информационная безопасность",null,"магистратура",1,"очная",0,0,0,0,0]
["ДиА","20.04.01","Техносферная безопасность",null,"магистратура",1,"очная",0,0,0,0,0]
["ДиА","23.04.01","Технология транспортных процессов",null,"магистратура",1,"очная",0,0,0,0,0]
["ЭТФ","09.03.02","Информационные системы и технологии   ",null,"бакалавриат",1,"очная",0,0,0,0,0]
["ЭМФ","13.03.02","Электроэнергетика и электротехника",null,"бакалавриат",1,"очная",0,0,0,0,0]
["ДиА","09.04.02","Информационные системы и технологии   ",null,"магистратура",1,"очная",0,0,0,0,0]
["ДиА","13.04.02","Электроэнергетика и электротехника",null,"магистратура",1,"очная",0,0,0,0,0]
["ДиА","23.04.02","Наземные транспортно-технологические комплексы",null,"магистратура",1,"очная",0,0,0,0,0]
["МФ","23.03.03","Эксплуатация транспортно-технологических машин и комплексов",null,"бакалавриат",1,"очная",0,0,0,0,0]
["ДиА","23.04.03","Эксплуатация транспортно-технологических машин и комплексов",null,"магистратура",1,"очная",0,0,0,0,0]
["МФ","23.05.03","Подвижной состав железных дорог","Вагоны","специалитет",1,"очная",0,0,0,0,0]
["ЭМФ","23.05.03","Подвижной состав железных дорог","Высокоскоростной наземный транспорт","специалитет",1,"очная",0,0,0,0,0]
["ЭМФ","23.05.03","Подвижной состав железных дорог","Электрический транспорт ж.д.","специалитет",1,"очная",0,0,0,0,0]
["ФУПП","23.05.04","Эксплуатация железных дорог","Грузовая и коммерческая работа","специалитет",1,"очная",0,0,0,0,0]
["ФУПП","23.05.04","Эксплуатация железных дорог","Магистральный транспорт","специалитет",1,"очная",0,0,0,0,0]
["ФУПП","23.05.04","Эксплуатация железных дорог","Пассажирский комплекс ж.д. транспорта","специалитет",1,"очная",0,0,0,0,0]
["ФУПП","23.05.04","Эксплуатация железных дорог","Транспортный бизнес и логистика","специалитет",1,"очная",0,0,0,0,0]
["ЭТФ","23.05.05","Системы обеспечения движения поездов","Автоматика и телемеханика на ж.д. транспорте","специалитет",1,"очная",0,0,0,0,0]
["ЭТФ","23.05.05","Системы обеспечения движения поездов","Телекоммуникационные системы и сети ж.д. транспорта.","специалитет",1,"очная",0,0,0,0,0]
["ЭМФ","23.05.05","Системы обеспечения движения поездов","Электроснабжение железных дорог","специалитет",1,"очная",0,0,0,0,0]
["МФ","15.03.06","Мехатроника и робототехника",null,"бакалавриат",1,"очная",0,0,0,0,0]
["ДиА","15.04.06","Мехатроника и робототехника",null,"магистратура",1,"очная",0,0,0,0,0]
["СФ","23.05.06","Строительство железных дорог, мостов и транспортных тоннелей   ","Мосты и транспортные тоннели","специалитет",1,"очная",0,0,0,0,0]
["СФ","23.05.06","Строительство железных дорог, мостов и транспортных тоннелей   ","Строительство магистральных железных дорог","специалитет",1,"очная",0,0,0,0,0]
["СФ","23.05.06","Строительство железных дорог, мостов и транспортных тоннелей   ","Управление техническим состоянием железнодорожного пути","специалитет",1,"очная",0,0,0,0,0]
["ФЭУ","38.03.01","Экономика   ",null,"бакалавриат",1,"очная",0,0,0,0,0]
["ФЭУ","38.03.02","Менеджмент",null,"бакалавриат",1,"очная",0,0,0,0,0]
["ДиА","38.03.02","Менеджмент",null,"магистратура",1,"очная",0,0,0,0,0]
["ФЭУ","38.03.03","Управление персоналом  ",null,"бакалавриат",1,"очная",0,0,0,0,0]
["ФЭУ","38.03.06","Торговое дело  ",null,"бакалавриат",1,"очная",0,0,0,0,0]
["ДиА","38.04.01","Экономика",null,"магистратура",1,"очная",0,0,0,0,0]
["ДиА","38.04.03","Управление персоналом",null,"магистратура",1,"очная",0,0,0,0,0]
["ФЭУ","39.03.01","Социология",null,"бакалавриат",1,"очная",0,0,0,0,0]
["ФУПП","43.03.01","Сервис ",null,"бакалавриат",1,"очная",0,0,0,0,0]
["ФЭУ","43.03.02","Туризм",null,"бакалавриат",1,"очная",0,0,0,0,0]
["ФЭУ","38.03.01","Экономика   ",null,"бакалавриат",1,"очно-заочная",0,0,0,0,0]
["ФЭУ","38.03.02","Менеджмент",null,"бакалавриат",1,"очно-заочная",0,0,0,0,0]
["ФЭУ","38.03.06","Торговое дело  ",null,"бакалавриат",1,"очно-заочная",0,0,0,0,0]
["ИЗО","08.03.01","Строительство",null,"бакалавриат",2,"заочная",6,1,0,0,16]
["ИЗО","20.03.01","Техносферная безопасность",null,"бакалавриат",2,"заочная",0,0,0,0,0]
["ИЗО","23.03.01","Технология транспортных процессов",null,"бакалавриат",2,"заочная",1,0,0,0,3]
["ИЗО","09.03.02","Информационные системы и технологии   ",null,"бакалавриат",2,"заочная",0,0,0,0,3]
["ИЗО","13.03.02","Электроэнергетика и электротехника",null,"бакалавриат",2,"заочная",0,0,0,0,0]
["ИЗО","23.03.02","Наземные транспортно-технологические комплексы",null,"бакалавриат",2,"заочная",0,0,0,0,0]
["ИЗО","13.04.02","Электроэнергетика и электротехника",null,"магистратура",2,"заочная",0,0,0,0,0]
["ДиА","13.04.02","Электроэнергетика и электротехника",null,"магистратура",2,"заочная",0,0,0,0,1]
["ИЗО","23.03.03","Эксплуатация транспортно-технологических машин и комплексов",null,"бакалавриат",2,"заочная",2,0,0,0,2]
["ИЗО","23.05.03","Подвижной состав железных дорог","Вагоны","специалитет",2,"заочная",0,1,0,0,0]
["ИЗО","23.05.03","Подвижной состав железных дорог","Электрический транспорт ж.д.","специалитет",2,"заочная",0,1,0,0,0]
["ИЗО","27.03.04","Управление в технических системах",null,"бакалавриат",2,"заочная",0,0,0,0,0]
["ИЗО","23.05.04","Эксплуатация железных дорог","Грузовая и коммерческая работа","специалитет",2,"заочная",0,0,0,0,14]
["ИЗО","23.05.04","Эксплуатация железных дорог","Магистральный транспорт","специалитет",2,"заочная",0,0,0,0,0]
["ИЗО","23.05.04","Эксплуатация железных дорог","Транспортный бизнес и логистика","специалитет",2,"заочная",0,0,0,0,0]
["ИЗО","23.05.05","Системы обеспечения движения поездов","Автоматика и телемеханика на ж.д. транспорте","специалитет",2,"заочная",0,2,0,0,4]
["ИЗО","23.05.05","Системы обеспечения движения поездов","Телекоммуникационные системы и сети ж.д. транспорта.","специалитет",2,"заочная"]
["ИЗО","23.05.05","Системы обеспечения движения поездов","Электроснабжение железных дорог","специалитет",2,"заочная",0,1,0,0,0]
["ИЗО","23.05.06","Строительство железных дорог, мостов и транспортных тоннелей   ","Строительство магистральных железных дорог","специалитет",2,"заочная",0,0,0,0,2]
["ИЗО","23.05.06","Строительство железных дорог, мостов и транспортных тоннелей   ","Управление техническим состоянием железнодорожного пути","специалитет",2,"заочная",0,1,0,0,0]
["ИЗО","38.03.01","Экономика   ",null,"бакалавриат",2,"заочная",0,0,0,0,7]
["ИЗО","38.03.02","Менеджмент",null,"бакалавриат",2,"заочная",0,0,0,0,7]
["ИЗО","38.03.03","Управление персоналом  ",null,"бакалавриат",2,"заочная",0,0,0,0,0]
["СФ","08.03.01","Строительство",null,"бакалавриат",2,"очная",0,0,0,0,5]
["ЭТФ","10.03.01","Информационная безопасность",null,"бакалавриат",2,"очная",2,0,0,0,0]
["ФУПП","20.03.01","Техносферная безопасность",null,"бакалавриат",2,"очная",0,0,0,0,0]
["ФУПП","23.03.01","Технология транспортных процессов",null,"бакалавриат",2,"очная",0,0,0,0,0]
["ДиА","08.04.01","Строительство",null,"магистратура",2,"очная",5,0,0,0,0]
["ДиА","10.04.01","Информационная безопасность",null,"магистратура",2,"очная",0,0,0,0,3]
["ДиА","20.04.01","Техносферная безопасность",null,"магистратура",2,"очная",1,0,0,0,0]
["ДиА","23.04.01","Технология транспортных процессов",null,"магистратура",2,"очная",3,0,0,0,2]
["ЭТФ","09.03.02","Информационные системы и технологии   ",null,"бакалавриат",2,"очная",0,1,0,0,0]
["МФ","23.03.02","Наземные транспортно-технологические комплексы",null,"бакалавриат",2,"очная",0,0,0,0,0]
["ДиА","09.04.02","Информационные системы и технологии   ",null,"магистратура",2,"очная",0,0,0,0,0]
["ДиА","23.04.02","Наземные транспортно-технологические комплексы",null,"магистратура",2,"очная",1,0,0,0,0]
["МФ","23.03.03","Эксплуатация транспортно-технологических машин и комплексов",null,"бакалавриат",2,"очная",0,0,0,0,1]
["ДиА","23.04.03","Эксплуатация транспортно-технологических машин и комплексов",null,"магистратура",2,"очная",9,0,0,0,0]
["МФ","23.05.03","Подвижной состав железных дорог","Вагоны","специалитет",2,"очная",0,0,0,0,0]
["ЭМФ","23.05.03","Подвижной состав железных дорог","Высокоскоростной наземный транспорт","специалитет",2,"очная",1,0,0,0,0]
["ЭМФ","23.05.03","Подвижной состав железных дорог","Электрический транспорт ж.д.","специалитет",2,"очная",0,0,0,0,0]
["ФУПП","23.05.04","Эксплуатация железных дорог","Грузовая и коммерческая работа","специалитет",2,"очная",0,0,0,0,0]
["ФУПП","23.05.04","Эксплуатация железных дорог","Магистральный транспорт","специалитет",2,"очная",1,1,0,0,0]
["ФУПП","23.05.04","Эксплуатация железных дорог","Пассажирский комплекс ж.д. транспорта","специалитет",2,"очная",0,0,0,0,0]
["ФУПП","23.05.04","Эксплуатация железных дорог","Транспортный бизнес и логистика","специалитет",2,"очная",0,0,0,0,0]
["ЭТФ","23.05.05","Системы обеспечения движения поездов","Автоматика и телемеханика на ж.д. транспорте","специалитет",2,"очная",0,0,0,0,0]
["ЭТФ","23.05.05","Системы обеспечения движения поездов","Телекоммуникационные системы и сети ж.д. транспорта.","специалитет",2,"очная",0,0,0,0,0]
["ЭМФ","23.05.05","Системы обеспечения движения поездов","Электроснабжение железных дорог","специалитет",2,"очная",0,0,0,0,1]
["МФ","15.03.06","Мехатроника и робототехника",null,"бакалавриат",2,"очная",2,0,0,0,0]
["ДиА","15.04.06","Мехатроника и робототехника",null,"магистратура",2,"очная",0,0,0,0,0]
["СФ","23.05.06","Строительство железных дорог, мостов и транспортных тоннелей   ","Мосты и транспортные тоннели","специалитет",2,"очная",0,0,0,0,3]
["СФ","23.05.06","Строительство железных дорог, мостов и транспортных тоннелей   ","Строительство магистральных железных дорог","специалитет",2,"очная",0,0,0,0,0]
["СФ","23.05.06","Строительство железных дорог, мостов и транспортных тоннелей   ","Управление техническим состоянием железнодорожного пути","специалитет",2,"очная",0,0,0,0,0]
["ФЭУ","38.03.01","Экономика   ",null,"бакалавриат",2,"очная",0,0,0,0,10]
["ФЭУ","38.03.02","Менеджмент",null,"бакалавриат",2,"очная",0,0,0,0,0]
["ДиА","38.03.02","Менеджмент",null,"магистратура",2,"очная",0,0,0,0,0]
["ФЭУ","38.03.03","Управление персоналом  ",null,"бакалавриат",2,"очная",0,0,0,0,0]
["ФЭУ","38.03.06","Торговое дело  ",null,"бакалавриат",2,"очная",0,0,0,0,0]
["ДиА","38.04.01","Экономика",null,"магистратура",2,"очная",0,0,0,0,1]
["ДиА","38.04.02","Менеджмент",null,"магистратура",2,"очная",0,0,0,0,0]
["ДиА","38.04.03","Управление персоналом",null,"магистратура",2,"очная",0,0,0,0,2]
["ФЭУ","39.03.01","Социология",null,"бакалавриат",2,"очная",0,0,0,0,0]
["ФУПП","43.03.01","Сервис ",null,"бакалавриат",2,"очная",0,0,0,0,0]
["ФЭУ","43.03.02","Туризм",null,"бакалавриат",2,"очная",0,0,0,0,0]
["ФЭУ","38.03.01","Экономика   ",null,"бакалавриат",2,"очно-заочная",0,0,0,0,0]
["ФЭУ","38.03.06","Торговое дело  ",null,"бакалавриат",2,"очно-заочная",0,0,0,0,0]
["ИЗО","08.03.01","Строительство",null,"бакалавриат",3,"заочная",1,0,0,0,4]
["ИЗО","20.03.01","Техносферная безопасность",null,"бакалавриат",3,"заочная",0,0,0,0,8]
["ИЗО","23.03.01","Технология транспортных процессов",null,"бакалавриат",3,"заочная",0,0,0,0,2]
["ИЗО","09.03.02","Информационные системы и технологии   ",null,"бакалавриат",3,"заочная",0,0,0,0,0]
["ИЗО","13.03.02","Электроэнергетика и электротехника",null,"бакалавриат",3,"заочная",0,0,0,0,3]
["ИЗО","23.03.03","Эксплуатация транспортно-технологических машин и комплексов",null,"бакалавриат",3,"заочная",3,0,0,0,0]
["ИЗО","23.05.03","Подвижной состав железных дорог","Вагоны","специалитет",3,"заочная",0,0,0,0,0]
["ИЗО","23.05.03","Подвижной состав железных дорог","Электрический транспорт ж.д.","специалитет",3,"заочная",0,0,0,0,0]
["ИЗО","27.03.04","Управление в технических системах",null,"бакалавриат",3,"заочная",0,0,0,0,3]
["ИЗО","23.05.04","Эксплуатация железных дорог","Грузовая и коммерческая работа","специалитет",3,"заочная",0,0,0,0,0]
["ИЗО","23.05.04","Эксплуатация железных дорог","Магистральный транспорт","специалитет",3,"заочная",0,0,0,0,7]
["ИЗО","23.05.04","Эксплуатация железных дорог","Пассажирский комплекс ж.д. транспорта","специалитет",3,"заочная",0,0,0,0,0]
["ИЗО","23.05.05","Системы обеспечения движения поездов","Автоматика и телемеханика на ж.д. транспорте","специалитет",3,"заочная",0,0,0,0,0]
["ИЗО","23.05.05","Системы обеспечения движения поездов","Телекоммуникационные системы и сети ж.д. транспорта.","специалитет",3,"заочная",0,0,0,0,0]
["ИЗО","23.05.05","Системы обеспечения движения поездов","Электроснабжение железных дорог","специалитет",3,"заочная",0,0,0,0,5]
["ИЗО","23.05.06","Строительство железных дорог, мостов и транспортных тоннелей   ","Строительство магистральных железных дорог","специалитет",3,"заочная",0,0,0,0,0]
["ИЗО","23.05.06","Строительство железных дорог, мостов и транспортных тоннелей   ","Управление техническим состоянием железнодорожного пути","специалитет",3,"заочная",1,0,0,0,0]
["ИЗО","38.03.01","Экономика   ",null,"бакалавриат",3,"заочная",0,0,0,0,12]
["ИЗО","38.03.02","Менеджмент",null,"бакалавриат",3,"заочная",0,0,0,0,23]
["ИЗО","38.03.03","Управление персоналом  ",null,"бакалавриат",3,"заочная",0,0,0,0,19]
["СФ","08.03.01","Строительство",null,"бакалавриат",3,"очная",0,0,0,0,2]
["ЭТФ","10.03.01","Информационная безопасность",null,"бакалавриат",3,"очная",0,0,0,0,3]
["ФУПП","20.03.01","Техносферная безопасность",null,"специалитет",3,"очная",0,0,0,0,0]
["ФУПП","23.03.01","Технология транспортных процессов",null,"бакалавриат",3,"очная",0,1,0,0,0]
["ЭТФ","09.03.02","Информационные системы и технологии   ",null,"бакалавриат",3,"очная",1,1,0,0,1]
["МФ","23.03.03","Эксплуатация транспортно-технологических машин и комплексов",null,"бакалавриат",3,"очная",1,0,0,0,2]
["МФ","23.05.03","Подвижной состав железных дорог","Вагоны","специалитет",3,"очная",5,3,0,0,0]
["ЭМФ","23.05.03","Подвижной состав железных дорог","Высокоскоростной наземный транспорт","специалитет",3,"очная",1,0,0,0,1]
["ЭМФ","23.05.03","Подвижной состав железных дорог","Электрический транспорт ж.д.","специалитет",3,"очная",3,4,0,0,1]
["МФ","27.03.04","Управление в технических системах",null,"бакалавриат",3,"очная",1,0,0,0,1]
["ФУПП","23.05.04","Эксплуатация железных дорог","Грузовая и коммерческая работа","специалитет",3,"очная",0,1,0,0,4]
["ФУПП","23.05.04","Эксплуатация железных дорог","Магистральный транспорт","специалитет",3,"очная",0,1,0,0,0]
["ФУПП","23.05.04","Эксплуатация железных дорог","Пассажирский комплекс ж.д. транспорта","специалитет",3,"очная",1,1,0,0,0]
["ФУПП","23.05.04","Эксплуатация железных дорог","Транспортный бизнес и логистика","специалитет",3,"очная",0,0,0,0,0]
["ЭТФ","23.05.05","Системы обеспечения движения поездов","Автоматика и телемеханика на ж.д. транспорте","специалитет",3,"очная",1,2,0,0,0]
["ЭТФ","23.05.05","Системы обеспечения движения поездов","Телекоммуникационные системы и сети ж.д. транспорта.","специалитет",3,"очная",0,1,0,0,0]
["ЭМФ","23.05.05","Системы обеспечения движения поездов","Электроснабжение железных дорог","специалитет",3,"очная",3,2,0,0,0]
["МФ","15.03.06","Мехатроника и робототехника",null,"бакалавриат",3,"очная",5,1,0,0,3]
["СФ","23.05.06","Строительство железных дорог, мостов и транспортных тоннелей   ","Мосты и транспортные тоннели","специалитет",3,"очная",0,0,0,0,5]
["СФ","23.05.06","Строительство железных дорог, мостов и транспортных тоннелей   ","Строительство магистральных железных дорог","специалитет",3,"очная",4,0,0,0,1]
["СФ","23.05.06","Строительство железных дорог, мостов и транспортных тоннелей   ","Управление техническим состоянием железнодорожного пути","специалитет",3,"очная",6,1,0,0,2]
["ФЭУ","38.03.01","Экономика   ",null,"бакалавриат",3,"очная",0,0,0,0,22]
["ФЭУ","38.03.02","Менеджмент",null,"бакалавриат",3,"очная",0,0,0,0,39]
["ФЭУ","38.03.03","Управление персоналом  ",null,"бакалавриат",3,"очная",0,0,0,0,28]
["ФЭУ","38.03.06","Торговое дело  ",null,"бакалавриат",3,"очная",0,0,0,0,4]
["ФЭУ","39.03.01","Социология",null,"бакалавриат",3,"очная",0,0,0,0,11]
["ФУПП","43.03.01","Сервис ",null,"бакалавриат",3,"очная",0,0,0,0,0]
["ФЭУ","43.03.02","Туризм",null,"бакалавриат",3,"очная",0,0,0,0,2]
["ФЭУ","38.03.01","Экономика   ",null,"бакалавриат",3,"очно-заочная",0,0,0,0,0]
["ФЭУ","38.03.06","Торговое дело  ",null,"бакалавриат",3,"очно-заочная",0,0,0,0,0]
["ИЗО","08.03.01","Строительство",null,"бакалавриат",4,"заочная",0,0,0,0,20]
["ИЗО","20.03.01","Техносферная безопасность",null,"бакалавриат",4,"заочная",0,0,0,0,11]
["ИЗО","23.03.01","Технология транспортных процессов",null,"бакалавриат",4,"заочная",0,0,0,0,24]
["ИЗО","09.03.02","Информационные системы и технологии   ",null,"бакалавриат",4,"заочная",0,0,0,0,42]
["ИЗО","13.03.02","Электроэнергетика и электротехника",null,"бакалавриат",4,"заочная",0,0,0,0,6]
["ИЗО","23.03.02","Наземные транспортно-технологические комплексы",null,"бакалавриат",4,"заочная",0,0,0,0,80]
["ИЗО","23.03.03","Эксплуатация транспортно-технологических машин и комплексов",null,"бакалавриат",4,"заочная",0,0,0,0,5]
["ИЗО","23.05.03","Подвижной состав железных дорог","Вагоны","специалитет",4,"заочная",6,0,0,0,18]
["ИЗО","23.05.03","Подвижной состав железных дорог","Электрический транспорт ж.д.","специалитет",4,"заочная",0,3,0,0,14]
["ИЗО","27.03.04","Управление в технических системах",null,"бакалавриат",4,"заочная",0,0,0,0,0]
["ИЗО","23.05.04","Эксплуатация железных дорог","Грузовая и коммерческая работа","специалитет",4,"заочная",0,2,0,0,19]
["ИЗО","23.05.04","Эксплуатация железных дорог","Магистральный транспорт","специалитет",4,"заочная",3,0,0,0,15]
["ИЗО","23.05.05","Системы обеспечения движения поездов","Автоматика и телемеханика на ж.д. транспорте","специалитет",4,"заочная",1,0,0,0,14]
["ИЗО","23.05.05","Системы обеспечения движения поездов","Телекоммуникационные системы и сети ж.д. транспорта.","специалитет",4,"заочная",0,0,0,0,3]
["ИЗО","23.05.05","Системы обеспечения движения поездов","Электроснабжение железных дорог","специалитет",4,"заочная",0,0,0,0,0]
["ИЗО","23.05.06","Строительство железных дорог, мостов и транспортных тоннелей   ","Строительство магистральных железных дорог","специалитет",4,"заочная",4,0,0,0,29]
["ИЗО","23.05.06","Строительство железных дорог, мостов и транспортных тоннелей   ","Управление техническим состоянием железнодорожного пути","специалитет",4,"заочная",3,0,0,0,11]
["ИЗО","38.03.01","Экономика   ",null,"бакалавриат",4,"заочная",0,0,0,0,46]
["ИЗО","38.03.02","Менеджмент",null,"бакалавриат",4,"заочная",0,0,0,0,21]
["ИЗО","38.03.03","Управление персоналом  ",null,"бакалавриат",4,"заочная",0,0,0,0,43]
["СФ","08.03.01","Строительство",null,"бакалавриат",4,"очная",0,0,0,0,15]
["ЭТФ","10.03.01","Информационная безопасность",null,"бакалавриат",4,"очная",0,0,0,0,13]
["ФУПП","20.03.01","Техносферная безопасность",null,"специалитет",4,"очная",0,0,0,0,0]
["ФУПП","23.03.01","Технология транспортных процессов",null,"бакалавриат",4,"очная",0,0,0,0,0]
["ЭТФ","09.03.02","Информационные системы и технологии   ",null,"бакалавриат",4,"очная",0,0,0,0,14]
["ЭМФ","13.03.02","Электроэнергетика и электротехника",null,"бакалавриат",4,"очная",0,0,0,0,2]
["МФ","23.03.03","Эксплуатация транспортно-технологических машин и комплексов",null,"бакалавриат",4,"очная",0,0,0,0,2]
["МФ","23.05.03","Подвижной состав железных дорог","Вагоны","специалитет",4,"очная",3,10,0,0,0]
["ЭМФ","23.05.03","Подвижной состав железных дорог","Высокоскоростной наземный транспорт","специалитет",4,"очная",0,0,0,0,0]
["ЭМФ","23.05.03","Подвижной состав железных дорог","Электрический транспорт ж.д.","специалитет",4,"очная",4,8,0,0,0]
["ФУПП","23.05.04","Эксплуатация железных дорог","Грузовая и коммерческая работа","специалитет",4,"очная",0,0,0,0,0]
["ФУПП","23.05.04","Эксплуатация железных дорог","Магистральный транспорт","специалитет",4,"очная",2,3,0,0,0]
["ФУПП","23.05.04","Эксплуатация железных дорог","Пассажирский комплекс ж.д. транспорта","специалитет",4,"очная",0,1,0,0,0]
["ФУПП","23.05.04","Эксплуатация железных дорог","Транспортный бизнес и логистика","специалитет",4,"очная",0,0,0,0,0]
["ЭТФ","23.05.05","Системы обеспечения движения поездов","Автоматика и телемеханика на ж.д. транспорте","специалитет",4,"очная",3,0,0,0,0]
["ЭТФ","23.05.05","Системы обеспечения движения поездов","Телекоммуникационные системы и сети ж.д. транспорта.","специалитет",4,"очная",1,0,0,0,0]
["ЭМФ","23.05.05","Системы обеспечения движения поездов","Электроснабжение железных дорог","специалитет",4,"очная",3,10,0,0,39]
["МФ","15.03.06","Мехатроника и робототехника",null,"бакалавриат",4,"очная",0,0,0,0,5]
["СФ","23.05.06","Строительство железных дорог, мостов и транспортных тоннелей   ","Мосты и транспортные тоннели","специалитет",4,"очная",0,0,0,0,4]
["СФ","23.05.06","Строительство железных дорог, мостов и транспортных тоннелей   ","Строительство магистральных железных дорог","специалитет",4,"очная",23,0,0,0,18]
["СФ","23.05.06","Строительство железных дорог, мостов и транспортных тоннелей   ","Управление техническим состоянием железнодорожного пути","специалитет",4,"очная",0,0,0,0,8]
["ФЭУ","38.03.01","Экономика   ",null,"бакалавриат",4,"очная",0,0,0,0,48]
["ФЭУ","38.03.02","Менеджмент",null,"бакалавриат",4,"очная",0,0,0,0,44]
["ФЭУ","38.03.03","Управление персоналом  ",null,"бакалавриат",4,"очная",0,0,0,0,31]
["ФЭУ","38.03.06","Торговое дело  ",null,"бакалавриат",4,"очная",0,0,0,0,21]
["ФУПП","43.03.01","Сервис ",null,"бакалавриат",4,"очная",0,0,0,0,13]
["ФЭУ","43.03.02","Туризм",null,"бакалавриат",4,"очная",0,0,0,0,1]
["ФЭУ","38.03.02","Менеджмент",null,"бакалавриат",4,"очно-заочная",0,0,0,0,0]
["ФЭУ","38.03.06","Торговое дело  ",null,"бакалавриат",4,"очно-заочная",0,0,0,0,0]
["ИЗО","08.03.01","Строительство",null,"бакалавриат",5,"заочная",0,0,0,0,173]
["ИЗО","20.03.01","Техносферная безопасность",null,"бакалавриат",5,"заочная",0,0,0,0,0]
["ИЗО","23.03.01","Технология транспортных процессов",null,"бакалавриат",5,"заочная",0,0,0,0,102]
["ИЗО","09.03.02","Информационные системы и технологии   ",null,"бакалавриат",5,"заочная",0,0,0,0,19]
["ИЗО","23.03.02","Наземные транспортно-технологические комплексы",null,"бакалавриат",5,"заочная",0,0,0,0,36]
["ИЗО","23.05.03","Подвижной состав железных дорог","Вагоны","специалитет",5,"заочная",0,2,0,0,80]
["ИЗО","23.05.03","Подвижной состав железных дорог","Электрический транспорт ж.д.","специалитет",5,"заочная",0,6,0,0,0]
["ИЗО","27.03.04","Управление в технических системах",null,"бакалавриат",5,"заочная",0,0,0,0,3]
["ИЗО","23.05.04","Эксплуатация железных дорог","Грузовая и коммерческая работа","специалитет",5,"заочная",5,3,0,0,35]
["ИЗО","23.05.04","Эксплуатация железных дорог","Магистральный транспорт","специалитет",5,"заочная",2,1,null,null,73]
["ИЗО","23.05.05","Системы обеспечения движения поездов","Автоматика и телемеханика на ж.д. транспорте","специалитет",5,"заочная",0,0,0,0,0]
["ИЗО","23.05.05","Системы обеспечения движения поездов","Телекоммуникационные системы и сети ж.д. транспорта.","специалитет",5,"заочная",1,1,0,0,0]
["ИЗО","23.05.05","Системы обеспечения движения поездов","Электроснабжение железных дорог","специалитет",5,"заочная",1,0,0,0,3]
["ИЗО","23.05.06","Строительство железных дорог, мостов и транспортных тоннелей   ","Строительство железных дорог, путь и путевое хозяйство","специалитет",5,"заочная",0,1,0,0,9]
["ИЗО","23.05.06","Строительство железных дорог, мостов и транспортных тоннелей   ","Управление техническим состоянием железнодорожного пути","специалитет",5,"заочная"]
["ИЗО","38.03.01","Экономика   ",null,"бакалавриат",5,"заочная",0,0,0,0,13]
["ИЗО","38.03.02","Менеджмент",null,"бакалавриат",5,"заочная",0,0,0,0,10]
["ИЗО","38.03.03","Управление персоналом  ",null,"бакалавриат",5,"заочная",0,0,0,0]
["МФ","23.05.03","Подвижной состав железных дорог","Вагоны","специалитет",5,"очная",2,5,0,0,30]
["ЭМФ","23.05.03","Подвижной состав железных дорог","Высокоскоростной наземный транспорт","специалитет",5,"очная",2,0,0,0,1]
["ЭМФ","23.05.03","Подвижной состав железных дорог","Электрический транспорт ж.д.","специалитет",5,"очная",3,6,0,0,0]
["ФУПП","23.05.04","Эксплуатация железных дорог","Грузовая и коммерческая работа","специалитет",5,"очная",0,0,0,0,40]
["ФУПП","23.05.04","Эксплуатация железных дорог","Магистральный транспорт","специалитет",5,"очная",3,0,0,0,24]
["ФУПП","23.05.04","Эксплуатация железных дорог","Пассажирский комплекс ж.д. транспорта","специалитет",5,"очная",0,0,0,0,0]
["ФУПП","23.05.04","Эксплуатация железных дорог","Транспортный бизнес и логистика","специалитет",5,"очная",0,0,0,0,0]
["ЭТФ","23.05.05","Системы обеспечения движения поездов","Автоматика и телемеханика на ж.д. транспорте","специалитет",5,"очная",2,10,0,0,1]
["ЭТФ","23.05.05","Системы обеспечения движения поездов","Телекоммуникационные системы и сети ж.д. транспорта.","специалитет",5,"очная",0,4,0,0,0]
["ЭМФ","23.05.05","Системы обеспечения движения поездов","Электроснабжение железных дорог","специалитет",5,"очная",2,9,0,0,51]
["СФ","23.05.06","Строительство железных дорог, мостов и транспортных тоннелей   ","Мосты и транспортные тоннели","специалитет",5,"очная",0,0,0,0,0]
["СФ","23.05.06","Строительство железных дорог, мостов и транспортных тоннелей   ","Строительство магистральных железных дорог","специалитет",5,"очная",3,7,0,0,16]
["СФ","23.05.06","Строительство железных дорог, мостов и транспортных тоннелей   ","Управление техническим состоянием железнодорожного пути","специалитет",5,"очная",4,14,0,0,24]
["ИЗО","23.05.03","Подвижной состав железных дорог","Вагоны","специалитет",6,"заочная",0,2,0,0,44]
["ИЗО","23.05.03","Подвижной состав железных дорог","Электрический транспорт ж.д.","специалитет",6,"заочная",2,0,0,0,47]
["ИЗО","23.05.04","Эксплуатация железных дорог","Безопасность движения и эксплуатация ж.д. Транспорта","специалитет",6,"заочная",3,0,0,0,0]
["ИЗО","23.05.04","Эксплуатация железных дорог","Грузовая и коммерческая работа","специалитет",6,"заочная",0,2,0,0,19]
["ИЗО","23.05.04","Эксплуатация железных дорог","Магистральный транспорт","специалитет",6,"заочная",1,0,0,0,61]
["ИЗО","23.05.04","Эксплуатация железных дорог","Пассажирский комплекс ж.д. транспорта","специалитет",6,"заочная",0,0,0,0,0]
["ИЗО","23.05.04","Эксплуатация железных дорог","Транспортный бизнес и логистика","специалитет",6,"заочная",0,0,0,0,0]
["ИЗО","23.05.05","Системы обеспечения движения поездов","Автоматика и телемеханика на ж.д. транспорте","специалитет",6,"заочная",0,1,0,0,10]
["ИЗО","23.05.05","Системы обеспечения движения поездов","Телекоммуникационные системы и сети ж.д. транспорта.","специалитет",6,"заочная",1,1,0,0,12]
["ИЗО","23.05.05","Системы обеспечения движения поездов","Электроснабжение железных дорог","специалитет",6,"заочная",0,0,0,0,45]
["ИЗО","23.05.06","Строительство железных дорог, мостов и транспортных тоннелей   ","Строительство железных дорог, путь и путевое хозяйство","специалитет",6,"заочная",0,0,0,0,18]
["ИЗО","23.05.06","Строительство железных дорог, мостов и транспортных тоннелей   ","Управление техническим состоянием железнодорожного пути","специалитет",6,"заочная",3,0,0,0,12]
["ДиА","08.06.01","Техника и технологии строительства ",null,"аспирантура",2,"очная",5,0,0,0,0]
["ДиА","09.06.01","Информатика и вычислительная техника",null,"аспирантура",2,"очная",1,0,0,0,0]
["ДиА","11.06.01","Электроника, радиотехника и системы связи",null,"аспирантура",2,"очная",1,0,0,0,0]
["ЭТФ","09.03.02","Информационные системы и технологии   ",null,"бакалавриат",1,"очная",0,0,0,0,0]
["ИЗО","09.03.02","Информационные системы и технологии   ",null,"бакалавриат",1,"заочная",0,0,0,0,0]
["ЭМФ","13.03.02","Электроэнергетика и электротехника",null,"бакалавриат",1,"очная",0,0,0,0,0]
["ИЗО","13.03.02","Электроэнергетика и электротехника",null,"бакалавриат",1,"заочная",0,0,0,0,0]
["ИЗО","23.03.02","Наземные транспортно-технологические комплексы",null,"бакалавриат",1,"заочная",0,0,0,0,0]
["ДиА","23.06.01","Техника и технологии наземного транспорта",null,"аспирантура",2,"очная",0,0,0,0,1]
["ДиА","03.06.01","Физика и астрономия",null,"аспирантура",3,"очная",2,0,0,0,0]
["ДиА","08.06.01","Техника и технологии строительства ",null,"аспирантура",3,"очная",3,0,0,0,0]
["МФ","23.03.03","Эксплуатация транспортно-технологических машин и комплексов",null,"бакалавриат",1,"очная",0,0,0,0,0]
["ИЗО","23.03.03","Эксплуатация транспортно-технологических машин и комплексов",null,"бакалавриат",1,"заочная",0,0,0,0,0]
["ДиА","13.06.01","Электро- и теплотехника",null,"аспирантура",3,"очная",1,0,0,0,0]
["МФ","23.05.03","Подвижной состав железных дорог","Вагоны","специалитет",1,"очная",0,0,0,0,0]
["ЭМФ","23.05.03","Подвижной состав железных дорог","Электрический транспорт ж.д.","специалитет",1,"очная",0,0,0,0,0]
["ЭМФ","23.05.03","Подвижной состав железных дорог","Высокоскоростной наземный транспорт","специалитет",1,"очная",0,0,0,0,0]
["МФ","27.03.04","Управление в технических системах",null,"бакалавриат",1,"очная",0,0,0,0,0]
["ИЗО","27.03.04","Управление в технических системах",null,"бакалавриат",1,"заочная",0,0,0,0,0]
["ФУПП","23.05.04","Эксплуатация железных дорог","Организация перевозок и управление на транспорте (Магистральный транспорт)","специалитет",1,"очная",0,0,0,0,0]
["ФУПП","23.05.04","Эксплуатация железных дорог","Организация перевозок и управление на транспорте (Грузовая и коммерческая работа)","специалитет",1,"очная",0,0,0,0,0]
["ФУПП","23.05.04","Эксплуатация железных дорог","Организация перевозок и управление на транспорте (Транспортный бизнес и логистика)","специалитет",1,"очная",0,0,0,0,0]
["ЭМФ","23.05.05","Системы обеспечения движения поездов","Электроснабжение железных дорог","специалитет",1,"очная",0,0,0,0,0]
["ЭТФ","23.05.05","Системы обеспечения движения поездов","автоматика и телемеханика на ж.д. транспорте","специалитет",1,"очная",0,0,0,0,0]
["ЭТФ","23.05.05","Системы обеспечения движения поездов","Телекоммуникационные системы и сети ж.д. транспорта.","специалитет",1,"очная",0,0,0,0,0]
["МФ","15.03.06","Мехатроника и робототехника",null,"бакалавриат",1,"очная",0,0,0,0,0]
["ИЗО","080502  ","Экономика и управление на предприятии (Железнодорожный транспорт)   ",null,"специалитет",1,"заочная",0,0,0,0,0]
["ИЗО","190303 ","Электрический транспорт железных дорог   ",null,"специалитет",1,"заочная",0,0,0,0,0]
["ИЗО","190401 ","Электроснабжение железных дорог   ",null,"специалитет",1,"заочная",0,0,0,0,0]
["ИЗО","190701    ","Организация перевозок и управление на транспорте (железнодорожный транспорт)    ",null,"специалитет",1,"заочная",0,0,0,0,0]
["ФЭУ","38.03.01","Экономика   ",null,"бакалавриат",1,"очная",0,0,0,0,0]
["ИЗО","38.03.01","Экономика   ",null,"бакалавриат",1,"заочная",0,0,0,0,0]
["ФЭУ","38.03.02","Менеджмент",null,"бакалавриат",1,"очная",0,0,0,0,0]
["ИЗО","38.03.02","Менеджмент",null,"бакалавриат",1,"заочная",0,0,0,0,0]
["ФЭУ","38.03.06","Торговое дело  ",null,"бакалавриат",1,"очная",0,0,0,0,0]
["ФУПП","43.03.01","Сервис ",null,"бакалавриат",1,"очная",0,0,0,0,0]
["ФЭУ","43.03.02","Туризм",null,"бакалавриат",1,"очная",0,0,0,0,0]
["СФ","08.03.01","Строительство",null,"бакалавриат",2,"очная",0,0,0,0,5]
["ИЗО","08.03.01","Строительство",null,"бакалавриат",2,"заочная",0,1,0,0,10]
["ЭТФ","10.03.01","Информационная безопасность",null,"бакалавриат",2,"очная",2,0,0,0,0]
["ФУПП","20.03.01","Техносферная безопасность",null,"бакалавриат",2,"очная",0,0,0,0,0]
["ИЗО","20.03.01","Техносферная безопасность",null,"специалитет",2,"заочная",0,0,0,0,0]
["ФУПП","23.03.01","Технология транспортных процессов",null,"бакалавриат",2,"очная",0,0,0,0,0]
["ИЗО","23.03.01","Технология транспортных процессов",null,"бакалавриат",2,"заочная",1,0,0,0,4]
["ДиА","23.06.01","Техника и технологии наземного транспорта",null,"аспирантура",3,"очная",2,0,0,0,0]
["ДиА","27.06.01","Управление в технических системах",null,"аспирантура",3,"очная",1,0,0,0,0]
[]
[null,null,null,null,"аспирантура",null,"очная",{"$f":"SUMIFS(H$2:H$319,$G$2:$G$319,$G321,$E$2:$E$319,$E321)","v":16},{"$f":"SUMIFS(I$2:I$319,$G$2:$G$319,$G321,$E$2:$E$319,$E321)","v":0},0,0,1]
[null,null,null,null,"магистратура",null,"очная",19,0,0,0,8]
[null,null,null,null,"бакалавриат",null,"очная",15,4,0,0,348]
[null,null,null,null,"специалитет",null,"очная",86,104,0,0,274]
[null,null,null,null,"бакалавриат",null,"заочная",14,3,0,0,781]
[null,null,null,null,"специалитет",null,"заочная",38,31,0,0,623]